Cogmind - Beta 13 @@@ ROGUE MODE // 2024.04.03 @ 12:26:59 Player: GwenMeow Result: Self-destructed Performance ------------- Evolutions (1) 500 Regions Visited (3) 600 Robots Destroyed (19) 95 Value Destroyed (522) 522 Prototype IDs (0) 0 Alien Tech Used (0) 0 Bonus (0) 0 TOTAL SCORE: 1717 Bonus ------- None Cogmind --------- Core Integrity 391/400 Matter 300/300 Energy 450/450 System Corruption 0% Temperature Cool (0) Movement Walking (120) Location -9/Materials Parts ------- > --- POWER (1) -------- Ion Engine > --- PROPULSION (3) --- Aluminum Leg Aluminum Leg > --- UTILITY (2) ------ Large Battery Hacking Suite > --- WEAPON (3) ------- Light Assault Rifle Light Assault Rifle > --- INVENTORY (5) ---- Aluminum Leg Experimental Sensor Array Grenade Launcher Peak State ------------ > --- POWER ------------ Ion Engine > --- PROPULSION ------- Aluminum Leg Aluminum Leg > --- UTILITY ---------- Large Battery Hacking Suite > --- WEAPON ----------- Light Assault Rifle Light Assault Rifle > --- INVENTORY -------- Experimental Sensor Array Grenade Launcher [Rating: 10] Favorites ----------- Power Ion Engine Engine Ion Engine Propulsion Aluminum Leg Leg Aluminum Leg Wheel Wheel Utility Small Matter Pod Device Heat Sink Storage Small Matter Pod Hackware Hacking Suite Weapon Light Assault Rifle Ballistic Gun Light Assault Rifle Launcher Grenade Launcher Build | -11 -10 -10 -9 ------- Run | Yrd Mat Min Mat Slots Evolved 2 | . . . 2 Power . | . . . . Propulsion 1 | . . . 1 Utility . | . . . . Weapon 1 | . . . 1 Parts Attached 24 | 9 8 4 3 Power 2 | 1 1 . . Engine 2 | 1 1 . . Core . | . . . . Reactor . | . . . . Propulsion 8 | 5 2 1 . Treads . | . . . . Leg 5 | 2 2 1 . Wheel 3 | 3 . . . Hover . | . . . . Flight . | . . . . Utility 5 | 1 3 . 1 Device 1 | 1 . . . Storage 3 | . 3 . . Processor . | . . . . Hackware 1 | . . . 1 Protection . | . . . . Artifact . | . . . . Weapon 9 | 2 2 3 2 Energy Gun . | . . . . Energy Cannon . | . . . . Ballistic Gun 6 | 2 1 2 1 Ballistic Cannon . | . . . . Launcher 3 | . 1 1 1 Special Weapon . | . . . . Impact Weapon . | . . . . Slashing Weapon . | . . . . Piercing Weapon . | . . . . Special Melee Weapon . | . . . . Unidentified Prototypes . | . . . . Parts Lost 2 | . 2 . . Power 1 | . 1 . . Propulsion 1 | . 1 . . Utility . | . . . . Weapon . | . . . . Highest Loss Streak 1 | . 1 . . To Critical Strikes . | . . . . Average Slot Usage (%) 97 | . 97 99 82 Engine 13 | . 13 14 11 Leg 26 | . 26 28 22 Device 2 | . 4 . . Storage 24 | . 23 28 13 Ballistic Gun 25 | . 27 24 20 Launcher 2 | . . 2 7 Naked Turns . | . . . . Heaviest Build 28 | 6 28 13 13 Greatest Support 20 | 20 20 20 20 Greatest Overweight (x) 2 | . 2 . . Average Overweight (x) . | . . . . Largest Inventory Capacity 15 | 5 15 5 5 Average Capacity 9 | 5 14 5 5 Most Carried 5 | 5 5 5 5 Average Carried 2 | 4 2 3 2 Final Capacity 5 | 5 5 5 5 Final Carried 5 | 4 2 5 3 Class Distribution -------------------- 66% | Mutant 27% | Scavenger-Mutant 5% | Scavenger-Gunner Dominant Class ---------------- Mutant | -10/Materials Scavenger-Mutant | -10/Mines Scavenger-Gunner | -9/Materials Resources | -11 -10 -10 -9 ----------- Run | Yrd Mat Min Mat Matter Collected 650 | 262 150 180 58 Remotely . | . . . . Salvage Created 428 | 31 173 107 117 Parts 32 | 2 9 11 10 Haulers Intercepted . | . . . . Recyclers Shooed . | . . . . Parts Field Recycled . | . . . . Retrieved Matter . | . . . . Parts Self-Destructed . | . . . . Prevented . | . . . . Kills | -11 -10 -10 -9 ------- Run | Yrd Mat Min Mat Combat Hostiles Destroyed 16 | 1 6 5 4 Guns 9 | 1 2 4 2 AOE 7 | . 4 1 2 Classes Destroyed 5 | 1 . 1 3 Worker 1 | . . . 1 Operator 1 | . . . 1 Watcher 1 | . . . 1 Swarmer 6 | . . 3 3 Grunt 10 | 1 6 2 1 Best Kill Streak 5 | 1 2 3 5 Combat Bots Only 3 | 1 2 3 3 Max Kills in Single Turn 3 | 1 2 2 3 Gunslinging . | . . . . Exploded 2 | . 2 1 2 Melee . | . . . . Uniques/NPCs Destroyed . | . . . . Combat | -11 -10 -10 -9 -------- Run | Yrd Mat Min Mat Hostile Shots Fired 76 | 8 31 16 21 Missed 23 | 3 11 3 6 Damage Taken 680 | 57 348 148 127 Core 119 | . 66 44 9 Absorbed by Shields . | . . . . Regen/Repaired (Parts) 68 | . 68 . . Core Remaining (%) 78 | 100 . 56 . Volleys Fired 39 | 6 20 9 4 Largest 3 | 2 2 2 3 Hottest 70 | 40 50 50 70 Shots Fired 80 | 12 40 18 10 Gun 70 | 12 34 16 8 Cannon . | . . . . Launcher 10 | . 6 2 2 Special . | . . . . Kinetic 70 | 12 34 16 8 Thermal . | . . . . Explosive 10 | . 6 2 2 Electromagnetic . | . . . . Robot Hit Streak 11 | 9 11 2 6 Robot Miss Streak 5 | 1 4 5 1 Penetration Max . | . . . . Secondary Targets . | . . . . Shots Hit Robots 45 | 10 21 6 8 Core Hits 33 | 2 12 10 9 Critical Kills . | . . . . Critical Parts Destroyed 1 | . 1 . . Critical Strikes 1 | . 1 . . Destroy 1 | . 1 . . Melee Attacks . | . . . . Impact . | . . . . Slashing . | . . . . Piercing . | . . . . Sneak Attacks . | . . . . Combat Hostiles . | . . . . Follow-up Attacks . | . . . . Damage Inflicted 1091 | 80 596 130 285 Guns 304 | 80 126 41 57 Cannons . | . . . . Explosions 787 | . 470 89 228 Melee . | . . . . Ramming . | . . . . Kinetic 304 | 80 126 41 57 Thermal 193 | . 193 . . Explosive 522 | . 277 89 156 Electromagnetic 72 | . . . 72 Impact . | . . . . Slashing . | . . . . Piercing . | . . . . Highest Corruption . | . . . . Average Corruption . | . . . . Corruption Purged . | . . . . Corruption Blocked . | . . . . Overload Shots . | . . . . Overflow Damage 49 | . 24 . 25 Projectiles . | . . . . Explosions 49 | . 24 . 25 Melee . | . . . . Knockbacks . | . . . . Impact . | . . . . Kinetic . | . . . . Secondary . | . . . . Self-Inflicted Damage 105 | . 105 . . Shots 2 | . 2 . . Rammed . | . . . . Targets Rammed . | . . . . Kicked . | . . . . Crushed . | . . . . Highest Temperature 30 | 12 30 25 25 Average Temperature 12 | 7 12 17 12 Received Heat Transfer 219 | 30 138 51 . Siege Activations . | . . . . Robots Corrupted . | . . . . Combat Hostiles . | . . . . Parts Fried 1 | . . . 1 Impact Corruptions . | . . . . Robots Melted . | . . . . Combat Hostiles . | . . . . Parts Melted . | . . . . Heat Transferred 100 | . 100 . . Parts Sabotaged . | . . . . Parts Stolen . | . . . . Parts Stripped . | . . . . Power Chain Reactions . | . . . . Alert | -11 -10 -10 -9 ------- Run | Yrd Mat Min Mat Peak Influence 295 | 20 295 142 216 Initial 72 | . 13 72 31 Average 107 | 14 133 109 142 Maximum Alert Level 1 | . 1 . 1 Low Security (%) 96 | 100 96 100 78 Level 1 3 | . 3 . 21 Level 2 . | . . . . Level 3 . | . . . . Level 4 . | . . . . Level 5 . | . . . . High Security . | . . . . Max Security . | . . . . Squads Dispatched 2 | . 2 . . Investigation 2 | . 2 . . Extermination . | . . . . Reinforcement . | . . . . Assault . | . . . . Garrison . | . . . . Intercept . | . . . . Searches Triggered . | . . . . Construction Impeded . | . . . . Haulers Reinforced . | . . . . Active Scanning Responses . | . . . . Cargo Convoy Interrupts . | . . . . Stealth | -11 -10 -10 -9 --------- Run | Yrd Mat Min Mat Distress Signals . | . . . . Communications Jammed . | . . . . Distress Signals . | . . . . Times Spotted 31 | 1 15 5 10 Peak Tracking Total 4 | 1 4 3 4 Tactical Retreats 1 | . 1 . . Traps | -11 -10 -10 -9 ------- Run | Yrd Mat Min Mat Traps Triggered 1 | . 1 . . Indirectly . | . . . . Trap Hack Attempts . | . . . . Triggered . | . . . . Disarmed . | . . . . Reprogrammed . | . . . . Reused . | . . . . Traps Extracted . | . . . . Installed . | . . . . Triggered . | . . . . Machines | -11 -10 -10 -9 ---------- Run | Yrd Mat Min Mat Machines Disabled 5 | . 3 . 2 Max in Single Turn 2 | . 2 . 1 Machines Repaired . | . . . . Machines Dismantled . | . . . . Machines Sabotaged . | . . . . Overloaded Fab Kills . | . . . . Hacking | -11 -10 -10 -9 --------- Run | Yrd Mat Min Mat Machines Accessed 6 | . 5 . 1 Terminals 4 | . 3 . 1 Fabricators . | . . . . Repair Stations 1 | . 1 . . Recycling Units 1 | . 1 . . Scanalyzers . | . . . . Garrison Access . | . . . . Total Hacks 20 | . 18 . 2 Successful 12 | . 11 . 1 Failed 8 | . 7 . 1 Catastrophic . | . . . . Database Lockouts . | . . . . Manual . | . . . . Terminals 10 | . 8 . 2 Fabricators . | . . . . Repair Stations 3 | . 3 . . Recycling Units 7 | . 7 . . Scanalyzers . | . . . . Garrison Access . | . . . . Terminal Hacks 6 | . 5 . 1 Record 3 | . 3 . . Alert Level 1 | . 1 . . Locate Traps 1 | . 1 . . Maintenance Status 1 | . . . 1 Fabricator Hacks . | . . . . Repair Station Hacks 2 | . 2 . . Scan Component 1 | . 1 . . Repair 1 | . 1 . . Recycling Unit Hacks 4 | . 4 . . Recycle Component 2 | . 2 . . Process 1 | . 1 . . Report Inventory 1 | . 1 . . Scanalyzer . | . . . . Garrison Access Hacks . | . . . . Unauthorized Hacks . | . . . . Terminals . | . . . . Fabricators . | . . . . Repair Stations . | . . . . Recycling Units . | . . . . Scanalyzers . | . . . . Garrison Access . | . . . . Data Cores Recovered 1 | . . . 1 Used . | . . . . Hacking Detections 4 | . 3 . 1 Full Trace Events 1 | . 1 . . Feedback Events . | . . . . Feedback Blocked . | . . . . Robot Schematics Acquired . | . . . . Robots Built . | . . . . Authchips . | . . . . Time . | . . . . Total Robot Build Rating . | . . . . Part Schematics Acquired . | . . . . Parts Built . | . . . . Authchips . | . . . . Time . | . . . . Total Part Build Rating . | . . . . Parts Repaired 1 | . 1 . . Time 26 | . 26 . . Parts Recycled 2 | . 2 . . Recycled Matter 105 | . 105 . . Retrieved Matter . | . . . . Retrieved Components . | . . . . Parts Scanalyzed . | . . . . Part Schematics Acquired . | . . . . Parts Damaged . | . . . . Bothacking | -11 -10 -10 -9 ------------ Run | Yrd Mat Min Mat Used RIF Installer . | . . . . Robots Hacked . | . . . . Non-combat . | . . . . Combat . | . . . . Robot Hacks Applied . | . . . . Relay Couplers Released . | . . . . Fabnet Peak Effective % . | . . . . Robots Rewired . | . . . . Allies Hacked . | . . . . Hacks Repelled . | . . . . Allies | -11 -10 -10 -9 -------- Run | Yrd Mat Min Mat Total Allies . | . . . . Largest Group . | . . . . Highest-Rated Group . | . . . . Highest-Rated Ally . | . . . . Total Orders . | . . . . Ally Attacks . | . . . . Total Damage . | . . . . Kills . | . . . . Allies Corrupted . | . . . . Allies Melted . | . . . . Intel | -11 -10 -10 -9 ------- Run | Yrd Mat Min Mat Robot Analysis Total . | . . . . Derelict Logs Recovered . | . . . . Drone Launches . | . . . . Drone Recoveries . | . . . . Exploration | -11 -10 -10 -9 ------------- Run | Yrd Mat Min Mat Turns Passed 1652 | 267 721 523 141 Spaces Moved 958 | 121 332 404 101 Core 31 | 31 . . . Treads . | . . . . Legs 855 | 18 332 404 101 Wheels 72 | 72 . . . Hover . | . . . . Flight . | . . . . Fastest Speed 50 | 50 120 120 120 Average Speed 137 | 78 185 120 120 Slowest Speed 260 | 120 260 120 120 Overloaded Moves . | . . . . Propulsion Burnouts . | . . . . Robots Hopped . | . . . . Cave-ins Triggered . | . . . . Exploration Rate (%) 39 | 8 65 71 14 Regions Visited 3 Branch Regions 1 Pre-discovered Areas . | . . . . Known Exits Taken . | . . . . Unknown Exits Taken 3 | 1 1 1 . Scrap Searched 2 | . . 2 . Spaces Dug . | . . . . Terrain Destroyed 100 | . 76 17 7 Melee . | . . . . Projectile . | . . . . AOE 100 | . 76 17 7 Terrain Rammed . | . . . . Walls Destroyed . | . . . . Machines Disabled . | . . . . Actions | -11 -10 -10 -9 --------- Run | Yrd Mat Min Mat Total 1234 | 285 406 428 115 Wait 174 | 137 34 3 . Move 955 | 120 331 403 101 Hop . | . . . . Pick Up 26 | 10 8 6 2 Fast Attach . | . . . . Attach 19 | 9 6 2 2 Detach 5 | 3 1 . 1 Swap 5 | . 2 2 1 Drop 11 | . 4 3 4 Fire 39 | 6 20 9 4 Melee . | . . . . Ram . | . . . . Kick . | . . . . Crush . | . . . . Escape Stasis . | . . . . Rewire . | . . . . Trap . | . . . . Miscellaneous . | . . . . Route ------- -11/Scrapyard -10/Materials (discovered 2 exits: *Mat / *Min) -10/Mines -9/Materials (discovered 1 exit: [*Sto]) History --------- Turn | Location | Event 2 | -11/Scrapyard | Met Revision 17 62 | -11/Scrapyard | Discovered new exit (range 8) 268 | -11/Scrapyard | Entered Materials 314 | -10/Materials | Build established: Mutant 633 | -10/Materials | Discovered new exit (range 16) 896 | -10/Materials | Discovered new exit (range 16) 952 | -10/Materials | Repaired Aluminum Leg 989 | -10/Materials | Entered Mines 1261 | -10/Mines | Found a damaged Exp. Sensor Array with a note attached 1263 | -10/Mines | Found Prototype Device 1398 | -10/Mines | Build established: Scavenger-Mutant 1499 | -10/Mines | Discovered new exit (range 9) 1512 | -10/Mines | Entered Materials 1512 | -9/Materials | Evolved 2 slots: Propulsion x1, Weapon x1 1573 | -9/Materials | Discovered new exit (range 9) 1653 | -9/Materials | Self-destructed Last Messages --------------- >>Enumerate(Maintenance) Found 29 registered maintenance bots. 9 Workers 8 Builders 5 Tunnelers 7 Recyclers Downloaded coordinate data. Connecting with Terminal... K-01 Serf collects debris. G-34 Mercenary destroyed. K-01 Serf collects debris. Acquired Aluminum Leg. R-06 Scavenger collects Aluminum Leg. K-01 Serf collects debris. Acquired 8 matter. K-01 Serf cleans the Material Processor. R-06 Scavenger collects Sml. Laser. K-01 Serf collects debris. R-06 Scavenger collects Heat Sink. K-01 Serf collects debris. Map ----- +----------------------------------------------------+ | ?????????????????????????????????? | | ?????????????????????????????????? | | ?????????????????????????????????? | | ?????????????????????????????????? | | ?????????????????????????????????? | | ?????????????????????????????????? | | ?????????????????????????????????? | | ?????????????????? #????????????? | | ????????????????? ????????????? | | ?????????? ?? T ????????????? | | ?????????# ? ????????????? | | ?????????# #????????????? | | ?????????# #????????????? | | ?????????# #????????????? | | ?????????+ ? #????????????? | | ?????????? #????????????? | | ??????????# """ =#????????????? | | ??????????# s""""" #????????????? | | ??????????# s""""" #????????????? | | ??????##### """"" #????????????? | | ??????# """ #????######??? | | ??????# s # + #? | | ??????+ + #?????? | | ??????# %# "" #?????? | | ??????# #???? +?????? | | ??????###@##### #????????????? | | ????????# #???# #????????????? | | ??????### ###?# #????????????? | | ??????# #?# #????????????? | | ???#### " #?# #????????????? | | ???# "T #?# #????????????? | | ???# ## #?# #????????????? | | ???# ## #?# ????????????? | | ???# ########?# ###???????????? | | ???# #????????# #?????????????? | | ???# #????????###+##?????????????? | | ???# #???????????????????????????? | | ???# #???????????????????????????? | | ???# #???????????????????????????? | | ?### ###?????????????????????????? | | ?# #?????????????????????????? | | ?# #???#??####???????????????? | | ?# < #??? ?? #??????????????? | | ?# #?? ? #??????????????? | | ?# #?? ? ]] #??????????????? | | ?### ###?? ? ][ ???????????????? | | ???# #???? ? ][?#??????????????? | | ???# #???? #??????????????? | | ???# #????! #??????????????? | | ???# #???? ????????????????? | +----------------------------------------------------+ Best States ------------- Heat Dissipation 35 Energy Generation 10 Energy Capacity 450 Matter Stores 350 Matter Capacity 350 Sight Range 16 Terrain Scan Density 10 Evasion (%) 55 Offensive Hacking 10 Item Schematics ----------------- None Robot Schematics ------------------ None Fabricated ------------ Nothing Alien Tech Used ----------------- None Achievements -------------- Storm Trooper Challenges ------------ None Game ------ Seed ThiefSniperRail Manual? 0 Play Time 00:30:26 Cumulative 0.4 hours Start 2024.04.03 @ 05:03:13 End 2024.04.03 @ 12:26:59 Sessions 3 Manual Loads 0 Difficulty Rogue Special Mode None Game No. 2 Rogue 2 Adventurer 0 Explorer 0 Win Type - Total 0 Types 0/0/0/0/0/0/0/0/0 Lore% 0 Gallery% 2 Achievement% 3 Wizard Run 0 Options --------- Layout 1 ASCII 0 Keyboard 0 Movement Mouse Keybinds 0 Fullscreen 1 Font 24/Smallcaps Map View 50x35 Zoom Use 0% Tactical HUD 0 Map Filters NONE Filters NONE Steam 1 RUN: b845563f-0c8d-479f-bfad-227d509c0abb